Cogmind - Beta 13 X1 @@@ ROGUE MODE // 2023.06.21 @ 22:46:12 Player: Cracklepappy Result: Self-destructed Performance ------------- Evolutions (0) 0 Regions Visited (3) 600 Robots Destroyed (39) 195 Value Destroyed (992) 992 Prototype IDs (2) 40 Alien Tech Used (0) 0 Bonus (0) 0 TOTAL SCORE: 1827 Bonus ------- None Cogmind --------- Core Integrity 81/250 Matter 241/300 Energy 150/150 System Corruption 1% Temperature Cool (0) Movement Treading (320) Ox2 Location -7/Recycling Parts ------- > --- POWER (1) -------- Light Angular Momentum Engine > --- PROPULSION (2) --- Light Treads Light Treads > --- UTILITY (2) ------ Huge Storage Unit Subdweller Optics > --- WEAPON (2) ------- Subdweller Laser Gatling Laser > --- INVENTORY (25) --- Ion Engine Improved Ion Engine Subdweller Power Source Improved Deuterium Engine Light Treads Light Treads Light Treads High-capacity Battery (250) Signal Interpreter Scrap Shield Light Cannon Light Cannon Grenade Launcher Grenade Launcher Mining Laser Multitool Peak State ------------ > --- POWER ------------ Light Angular Momentum Engine > --- PROPULSION ------- Light Treads Carbon-fiber Leg > --- UTILITY ---------- Huge Storage Unit Subdweller Optics > --- WEAPON ----------- Subdweller Laser Gatling Laser > --- INVENTORY -------- Ion Engine Improved Ion Engine Subdweller Power Source Improved Deuterium Engine Light Treads Light Treads Light Treads Light Treads High-capacity Battery Signal Interpreter Scrap Shield Light Cannon Light Cannon Grenade Launcher Grenade Launcher Mining Laser Multitool [Rating: 20] Favorites ----------- Power Ion Engine Engine Ion Engine Propulsion Light Treads Treads Light Treads Leg Carbon-fiber Leg Wheel Compact Wheel Utility Huge Storage Unit Device Seismic Detector Storage Huge Storage Unit Processor Signal Interpreter Protection Light Armor Plating Weapon Assault Rifle Energy Gun Subdweller Laser Energy Cannon Subdweller Beam Cannon Ballistic Gun Assault Rifle Ballistic Cannon Light Cannon Launcher Grenade Launcher Special Weapon Mining Laser Build | -11 -10 -10 -7 ------- Run | Jun Mat Sub Rec Slots Evolved . | . . . . Power . | . . . . Propulsion . | . . . . Utility . | . . . . Weapon . | . . . . Parts Attached 69 | 7 26 31 5 Power 8 | 1 2 5 . Engine 8 | 1 2 5 . Core . | . . . . Reactor . | . . . . Propulsion 13 | 2 3 6 2 Treads 10 | 1 3 5 1 Leg 1 | . . . 1 Wheel 2 | 1 . 1 . Hover . | . . . . Flight . | . . . . Utility 9 | 2 5 1 1 Device 2 | 1 . . 1 Storage 3 | 1 2 . . Processor 1 | . 1 . . Hackware . | . . . . Protection 3 | . 2 1 . Artifact . | . . . . Weapon 39 | 2 16 19 2 Energy Gun 11 | . 6 3 2 Energy Cannon 4 | . . 4 . Ballistic Gun 13 | 2 9 2 . Ballistic Cannon 3 | . . 3 . Launcher 4 | . . 4 . Special Weapon 4 | . 1 3 . Impact Weapon . | . . . . Slashing Weapon . | . . . . Piercing Weapon . | . . . . Special Melee Weapon . | . . . . Unidentified Prototypes . | . . . . Parts Lost 9 | . . 9 . Power 1 | . . 1 . Propulsion 2 | . . 2 . Utility 2 | . . 2 . Weapon 4 | . . 4 . Highest Loss Streak 6 | . . 6 . To Critical Strikes 2 | . . 2 . Average Slot Usage (%) 95 | . 99 93 97 Engine 14 | . 14 14 14 Treads 27 | . 26 27 28 Device 2 | . 4 . 11 Storage 14 | . 14 14 14 Protection 8 | . 9 7 . Energy Gun 5 | . 3 6 21 Energy Cannon 3 | . . 5 . Ballistic Gun 13 | . 24 6 . Ballistic Cannon 5 | . . 8 6 Naked Turns . | . . . . Heaviest Build 100 | 15 92 100 99 Greatest Support 40 | 16 40 40 40 Greatest Overweight (x) 4 | . 2 4 2 Average Overweight (x) 1 | . 1 2 2 Largest Inventory Capacity 25 | 8 25 25 25 Average Capacity 22 | 7 19 25 25 Most Carried 25 | 8 25 25 25 Average Carried 21 | 5 17 24 20 Final Capacity 25 | 8 25 25 25 Final Carried 25 | 8 25 25 17 Class Distribution -------------------- 82% | Mutant 17% | Subdweller-Mutant Dominant Class ---------------- Mutant | -10/Materials Mutant | -10/Subcaves Subdweller-Mutant | -7/Recycling Resources | -11 -10 -10 -7 ----------- Run | Jun Mat Sub Rec Matter Collected 1481 | 302 513 588 78 Remotely . | . . . . Salvage Created 1226 | 156 541 529 . Parts 90 | 10 32 48 . Haulers Intercepted 2 | . 2 . . Recyclers Shooed 2 | . 2 . . Parts Field Recycled . | . . . . Retrieved Matter . | . . . . Parts Self-Destructed 12 | . . 12 . Prevented . | . . . . Kills | -11 -10 -10 -7 ------- Run | Jun Mat Sub Rec Combat Hostiles Destroyed 28 | . 9 19 . Guns 12 | . 9 3 . Cannons 4 | . . 4 . AOE 12 | . . 12 . Classes Destroyed 10 | 2 5 3 . Tunneler 4 | 4 . . . Hauler 2 | . 2 . . Recycler 2 | 1 1 . . Operator 1 | . 1 . . Watcher 2 | . 2 . . Swarmer 7 | . 3 4 . Grunt 6 | . 6 . . Artisan 1 | . . 1 . Cobbler 1 | . . 1 . Subdweller 15 | . . 15 . Best Kill Streak 6 | 3 3 6 . Combat Bots Only 6 | . 2 6 . Max Kills in Single Turn 4 | 1 1 4 . Gunslinging . | . . . . Exploded 4 | . . 4 . Melee . | . . . . Uniques/NPCs Destroyed . | . . . . Combat | -11 -10 -10 -7 -------- Run | Jun Mat Sub Rec Damage Taken 1797 | . 397 1400 . Core 169 | . 52 117 . Absorbed by Shields . | . . . . Core Remaining (%) 100 | 100 . . . Volleys Fired 147 | 7 54 86 . Largest 2 | 2 2 2 . Hottest 115 | 40 100 115 . Shots Fired 241 | 14 100 127 . Gun 179 | 14 99 66 . Cannon 38 | . . 38 . Launcher 14 | . . 14 . Special 10 | . 1 9 . Kinetic 150 | 14 74 62 . Thermal 52 | . 1 51 . Explosive 14 | . . 14 . Electromagnetic 25 | . 25 . . Robot Hit Streak 13 | 8 8 13 . Robot Miss Streak 4 | 1 4 2 . Penetration Max . | . . . . Secondary Targets . | . . . . Shots Hit Robots 131 | 9 55 67 . Core Hits 65 | 6 20 39 . Critical Kills . | . . . . Critical Parts Destroyed . | . . . . Critical Strikes . | . . . . Melee Attacks . | . . . . Impact . | . . . . Slashing . | . . . . Piercing . | . . . . Sneak Attacks . | . . . . Combat Hostiles . | . . . . Follow-up Attacks . | . . . . Damage Inflicted 2582 | 119 799 1664 . Guns 1448 | 119 757 572 . Cannons 238 | . . 238 . Explosions 854 | . . 854 . Melee . | . . . . Ramming 42 | . 42 . . Kinetic 1146 | 119 543 484 . Thermal 326 | . . 326 . Explosive 854 | . . 854 . Electromagnetic 214 | . 214 . . Impact . | . . . . Slashing . | . . . . Piercing . | . . . . Highest Corruption 1 | . 1 1 1 Average Corruption 1 | . 1 1 1 Corruption Purged . | . . . . Corruption Blocked . | . . . . Effects 52 | . 18 32 2 Message Errors 10 | . 3 7 . Matter Fused 13 | . 3 9 1 Heat Flow Errors 5 | . 3 2 . Energy Discharges 5 | . 3 2 . Parts Rejected 1 | . . 1 . Data Loss (minor) 9 | . 2 7 . Data Loss (major) 2 | . 2 . . Misfires 2 | . . 2 . Alerts 4 | . 2 1 1 Weapon Failures 1 | . . 1 . Overload Shots . | . . . . Overflow Damage 7 | . . 7 . Projectiles . | . . . . Explosions 7 | . . 7 . Melee . | . . . . Knockbacks . | . . . . Impact . | . . . . Kinetic . | . . . . Secondary . | . . . . Self-Inflicted Damage 66 | . . 66 . Shots 4 | . . 4 . Rammed 3 | . 3 . . Targets Rammed 4 | . 4 . . Kicked . | . . . . Crushed 1 | . 1 . . Highest Temperature 258 | . 234 258 . Average Temperature 74 | . 90 43 . Received Heat Transfer 432 | . 180 252 . Siege Activations . | . . . . Robots Corrupted . | . . . . Combat Hostiles . | . . . . Parts Fried . | . . . . Impact Corruptions . | . . . . Robots Melted . | . . . . Combat Hostiles . | . . . . Parts Melted 2 | . . 2 . Heat Transferred 399 | . . 399 . Parts Sabotaged . | . . . . Parts Stolen . | . . . . Parts Stripped . | . . . . Power Chain Reactions . | . . . . Missiles Intercepted . | . . . . Alert | -11 -10 -10 -7 ------- Run | Jun Mat Sub Rec Peak Influence 484 | 25 147 . 484 Initial 448 | . 16 . 448 Average 59 | 12 34 . 479 Maximum Alert Level 2 | . . . 2 Low Security (%) 94 | 100 100 . . Level 1 . | . . . . Level 2 5 | . . . 100 Level 3 . | . . . . Level 4 . | . . . . Level 5 . | . . . . High Security . | . . . . Max Security . | . . . . Squads Dispatched 1 | . 1 . . Investigation . | . . . . Extermination . | . . . . Reinforcement 1 | . 1 . . Assault . | . . . . Garrison . | . . . . Intercept . | . . . . Searches Triggered . | . . . . Construction Impeded . | . . . . Haulers Reinforced . | . . . . Active Scanning Responses . | . . . . Cargo Convoy Interrupts . | . . . . Stealth | -11 -10 -10 -7 --------- Run | Jun Mat Sub Rec Distress Signals 1 | . 1 . . Communications Jammed . | . . . . Distress Signals . | . . . . Times Spotted 62 | . 20 42 . Peak Tracking Total 7 | . 2 7 . Tactical Retreats 6 | . 1 5 . Traps | -11 -10 -10 -7 ------- Run | Jun Mat Sub Rec Traps Triggered 4 | . 4 . . Indirectly . | . . . . Trap Hack Attempts . | . . . . Triggered . | . . . . Disarmed . | . . . . Reprogrammed . | . . . . Reused . | . . . . Traps Extracted . | . . . . Installed 1 | . . 1 . Triggered . | . . . . Machines | -11 -10 -10 -7 ---------- Run | Jun Mat Sub Rec Machines Disabled 3 | . . 3 . Max in Single Turn 2 | . . 2 . Machines Repaired . | . . . . Machines Sabotaged . | . . . . Overloaded Fab Kills . | . . . . Hacking | -11 -10 -10 -7 --------- Run | Jun Mat Sub Rec Machines Accessed 10 | . 7 1 2 Terminals 6 | . 6 . . Fabricators . | . . . . Repair Stations . | . . . . Recycling Units 3 | . 1 . 2 Scanalyzers . | . . . . Garrison Access . | . . . . Total Hacks 25 | . 20 1 4 Successful 9 | . 5 1 3 Failed 16 | . 15 . 1 Catastrophic 2 | . 2 . . Database Lockouts . | . . . . Manual 10 | . 7 . 3 Terminals 16 | . 16 . . Fabricators . | . . . . Repair Stations . | . . . . Recycling Units 8 | . 4 . 4 Scanalyzers . | . . . . Garrison Access . | . . . . Terminal Hacks 6 | . 5 1 . Record 1 | . . 1 . Prototype ID Bank 1 | . 1 . . Branch Access Points 1 | . 1 . . Terminal Index 1 | . 1 . . Hauler Manifests 1 | . 1 . . Zone Layout 1 | . 1 . . Fabricator Hacks . | . . . . Repair Station Hacks . | . . . . Recycling Unit Hacks 1 | . . . 1 Retrieve Components 1 | . . . 1 Scanalyzer . | . . . . Garrison Access Hacks . | . . . . Unauthorized Hacks 2 | . . . 2 Terminals . | . . . . Fabricators . | . . . . Repair Stations . | . . . . Recycling Units 2 | . . . 2 Mask 1 | . . . 1 Tunnel 1 | . . . 1 Scanalyzers . | . . . . Garrison Access . | . . . . Data Cores Recovered . | . . . . Used . | . . . . Hacking Detections 8 | . 7 . 1 Full Trace Events 3 | . 3 . . Feedback Events . | . . . . Feedback Blocked . | . . . . Robot Schematics Acquired . | . . . . Robots Built . | . . . . Authchips . | . . . . Time . | . . . . Total Robot Build Rating . | . . . . Part Schematics Acquired . | . . . . Parts Built . | . . . . Authchips . | . . . . Time . | . . . . Total Part Build Rating . | . . . . Parts Repaired . | . . . . Time . | . . . . Parts Recycled . | . . . . Recycled Matter . | . . . . Retrieved Matter . | . . . . Retrieved Components 3 | . . . 3 Parts Scanalyzed . | . . . . Part Schematics Acquired . | . . . . Parts Damaged . | . . . . Bothacking | -11 -10 -10 -7 ------------ Run | Jun Mat Sub Rec Used RIF Installer . | . . . . Robots Hacked . | . . . . Non-combat . | . . . . Combat . | . . . . Robot Hacks Applied . | . . . . Relay Couplers Released . | . . . . Fabnet Peak Effective % . | . . . . Robots Rewired . | . . . . Allies Hacked . | . . . . Hacks Repelled . | . . . . Allies | -11 -10 -10 -7 -------- Run | Jun Mat Sub Rec Total Allies . | . . . . Largest Group . | . . . . Highest-Rated Group . | . . . . Highest-Rated Ally . | . . . . Total Orders . | . . . . Ally Attacks . | . . . . Total Damage . | . . . . Kills . | . . . . Allies Corrupted . | . . . . Allies Melted . | . . . . Intel | -11 -10 -10 -7 ------- Run | Jun Mat Sub Rec Robot Analysis Total . | . . . . Derelict Logs Recovered 1 | . . 1 . Drone Launches . | . . . . Drone Recoveries . | . . . . Exploration | -11 -10 -10 -7 ------------- Run | Jun Mat Sub Rec Turns Passed 7375 | 198 2850 4136 191 Spaces Moved 2545 | 158 1141 1191 55 Core 5 | 5 . . . Treads 2188 | . 942 1191 55 Legs . | . . . . Wheels 352 | 153 199 . . Hover . | . . . . Flight . | . . . . Fastest Speed 50 | 50 100 320 320 Average Speed 265 | 98 228 320 320 Slowest Speed 480 | 100 320 480 320 Overloaded Moves . | . . . . Propulsion Burnouts . | . . . . Robots Hopped . | . . . . Cave-ins Triggered . | . . . . Exploration Rate (%) 46 | 5 99 60 22 Regions Visited 3 Branch Regions 2 Pre-discovered Areas 2 | . . 1 1 Known Exits Taken 1 | . 1 . . Unknown Exits Taken 2 | 1 . 1 . Scrap Searched . | . . . . Spaces Dug 23 | . 1 22 . Terrain Destroyed 72 | . 1 71 . Melee . | . . . . Projectile 6 | . 1 5 . AOE 66 | . . 66 . Terrain Rammed . | . . . . Walls Destroyed . | . . . . Machines Disabled . | . . . . Actions | -11 -10 -10 -7 --------- Run | Jun Mat Sub Rec Total 2904 | 184 1274 1372 74 Wait 35 | . 5 30 . Move 2542 | 157 1140 1190 55 Hop . | . . . . Pick Up 62 | 11 29 18 4 Fast Attach 16 | 6 6 4 . Attach 14 | 1 2 8 3 Detach . | . . . . Swap 39 | . 18 19 2 Drop 44 | 2 16 16 10 Fire 147 | 7 54 86 . Melee . | . . . . Ram . | . . . . Kick . | . . . . Crush 4 | . 4 . . Escape Stasis . | . . . . Rewire . | . . . . Trap 1 | . . 1 . Miscellaneous . | . . . . Route ------- -11/Junkyard -10/Materials (discovered 5 exits: [*Mat x3] / *Min / *Sub) -10/Subcaves (discovered 3 exits: [*Mat] / [*Mat] / *Rec) -7/Recycling History --------- Turn | Location | Event 9 | -11/Junkyard | Discovered new exit (range 15) 199 | -11/Junkyard | Entered Materials 244 | -10/Materials | Discovered new exit (range 9) 301 | -10/Materials | Discovered new exit (range 7) 308 | -10/Materials | Build established: Mutant 414 | -10/Materials | Discovered new exit (range 10) 618 | -10/Materials | Identified exit to Mines 939 | -10/Materials | Discovered new exit (range 14) 1149 | -10/Materials | Discovered new exit (range 15) 2184 | -10/Materials | Identified exit to Subcaves 3049 | -10/Materials | Entered Subcaves 3113 | -10/Subcaves | Shifting Twisted Machinery released Riot Gun 3140 | -10/Subcaves | Shifting Twisted Machinery released Sub. Laser 3229 | -10/Subcaves | Learned Materials stockpile data 3285 | -10/Subcaves | Ambushed by swarm of Subdwellers 3289 | -10/Subcaves | Ambushed by Subdwellers from Twisted Machinery 3383 | -10/Subcaves | Lost 6 parts (1p2n1u2w) 3673 | -10/Subcaves | Shifting Twisted Machinery released Battle Rifle 3674 | -10/Subcaves | Shifting Twisted Machinery released Sub. Beam Cannon 4141 | -10/Subcaves | Learned location of Zion (-7) 4141 | -10/Subcaves | Met a Zionite searching for "candidates" 4290 | -10/Subcaves | Build established: Subdweller-Mutant 5389 | -10/Subcaves | Core integrity fell below 50% 5396 | -10/Subcaves | Discovered new exit (range 15) 5439 | -10/Subcaves | Build established: Mutant 5553 | -10/Subcaves | Discovered new exit (range 10) 6210 | -10/Subcaves | Discovered new exit (range 14) 6504 | -10/Subcaves | Visited Clippyterm 7185 | -10/Subcaves | Entered Recycling 7376 | -7/Recycling | Self-destructed Last Messages --------------- 07201_ Acquired Unknown Energy Gun. 07211_ Dropped Lgt. Assault Rifle. 07212_ Acquired Arc Projector. 07220_ Acquired Imp. Deuterium Engine. 07227_ R-06 Scavenger collects Lgt. Assault Rifle. 07263_ Connecting with Recycling Unit... >>Trojan(Mask) Trojan loaded successfully. Testing... Masking routine running. 07266_ Dropped Myomer Leg. 07267_ Dropped Broken Sub. Beam Cannon. 07267_ Dropped Sub. Beam Cannon. 07268_ Dropped Arc Projector. 07268_ Dropped Scrap Shield Fragment. 07270_ Identified Gatling Laser. 07271_ Identified Carbon-fiber Leg. 07273_ Dropped Carbon-fiber Leg. 07292_ System corrupted: IFF burst signal emitted. 07293_ Acquired 78 matter. Map ----- +----------------------------------------------------+ | ???????????????????????????????? | | ???????????????????????????????? | | ???????????????????????????????? | | ???????????????????????????????? | | ???????????????????????????????? | | ???????????????????????????????? | | ??????????"????????????????????? | | ?????????? ????????????????????? | | ?????????? ????????????????????? | | ?????????#+##??????????????????? | | ????????? ??????????????????? | | ????????? ??????????????????? | | ????????# ??????????????????? | | ????????# #??????????????????? | | ????????# #??????????????????? | | ????????# #??????????????????? | | ????????# #??????????????????? | | ????????# #??????????????????? | | ??####### #??????????????????? | | ??# # #??????????????????? | | ??# "" # #??????????????????? | | ??# "" + +??????????????????? | | ??# T" # #??????????????????? | | ??# "" # #??????????????????? | | ??# + +??????????????????? | | ??# @# #??????????????????? | | ??# # #??????????????????? | | ??# """ # #??????????????????? | | ??# """ # #??????????????????? | | ??# """ # #??######??????????? | | ??# """ # #?""" """ #????????? | | ??# # #?""" """ #????????? | | ??# # # """ """ #????????? | | ??# # # #????????? | | ??####### + #????????? | | ????????# # #????????? | | ??####### # #????????? | | ??#= [# #? #????????? | | ??# # #?#########??###???? | | ??# # ########## #???? | | ??# # #???? | | ??#! ! # +???? | | ??# # #???? | | ??# * # ##%%%##### #???? | | ??#! + #?%%%#??????? ##???? | | ??# # ######?????????????? | | ??# #= ""#????????????????? | | ??# ! # & Y"#????????????????? | | ??#= #&[ ""#????????????????? | | ??# ! [#]= ### #######????????? | +----------------------------------------------------+ Best States ------------- Heat Dissipation 25 Energy Generation 18 Energy Capacity 265 Matter Stores 300 Matter Capacity 300 Sight Range 21 Terrain Scan Density 10 Armor Coverage 150 Evasion (%) 40 Recoil Reduction 2 Item Schematics ----------------- None Robot Schematics ------------------ None Fabricated ------------ Nothing Alien Tech Used ----------------- None Achievements -------------- None Challenges ------------ None Game ------ Seed LegModifiedKinecellerator Manual? 0 Play Time 00:49:53 Cumulative 534.0 hours Start 2023.06.21 @ 21:43:21 End 2023.06.21 @ 22:46:12 Sessions 3 Manual Loads 0 Difficulty Rogue Special Mode None Game No. 374 Rogue 374 Adventurer 0 Explorer 0 Win Type - Total 17 Types 9/3/1/0/0/1/2/1/0 Lore% 77 Gallery% 89 Achievement% 79 Wizard Run 0 Options --------- ASCII 0 Keyboard 0 Movement Numpad Keybinds 0 Fullscreen 2 Font 24/Terminus Map View 76x50 Tactical HUD 1 Map Filters NONE Filters NONE Steam 1 RUN: d891c796-2e94-4a01-9058-f284128b9efa